bitfinex/quotes_SOLUSD_20251208
["timestamp","ask_amount","ask_price","bid_price","bid_amount"]
[1765234574359,17.01446972,133.61,133.6,0.1]
[1765234574641,28.43056627,133.61,133.6,0.1]
[1765234574845,28.43056627,133.61,133.6,1e-08]
[1765234583435,8.80994492,133.6,133.59,1e-08]
[1765234583636,20.32609655,133.6,133.59,1e-08]
[1765234584726,29.28886167,133.6,133.59,1e-08]
[1765234585252,32.28814933,133.6,133.59,1e-08]
[1765234588750,48.59701333,133.6,133.59,1e-08]
[1765234590531,45.59772567,133.6,133.59,1e-08]
[1765234593450,37.39772567,133.6,133.59,1e-08]
[1765234593755,45.59772567,133.6,133.59,1e-08]
[1765234596251,8.80994492,133.56,133.49,0.67]
[1765234596451,8.80994492,133.52,133.49,0.67]
[1765234597852,7.49007564,133.51,133.49,0.67]
[1765234600667,7.49007564,133.51,133.46,0.77]
[1765234600668,8.80994492,133.5,133.46,0.77]
[1765234600853,8.80994492,133.5,133.47,0.67]
[1765234601170,12.89383173,133.5,133.47,0.67]
[1765234601375,8.80994492,133.5,133.47,0.67]
[1765234601742,8.80994492,133.5,133.46,0.1]
[1765234601961,12.89383173,133.5,133.46,0.1]
[1765234602143,4.08388681,133.49,133.46,0.1]
[1765234602343,8.80994492,133.48,133.46,0.1]
[1765234602755,7.49232037,133.47,133.46,0.1]
[1765234603148,7.49232037,133.47,133.46,0.77]
[1765234603350,7.49190545,133.48,133.46,0.77]
[1765234603559,7.4906367,133.5,133.46,4.85388681]
[1765234604045,7.4906367,133.5,133.47,0.67]
[1765234604549,26.21573529,133.51,133.47,0.67]
[1765234605768,26.21573529,133.51,133.47,4.75388681]
[1765234606273,26.21573529,133.51,133.48,0.67]
[1765234606969,7.49007564,133.51,133.48,21.06275081]
[1765234607276,7.49007564,133.51,133.49,4.08388681]
[1765234607474,7.49007564,133.51,133.49,4.75388681]
[1765234607656,7.49007564,133.51,133.5,0.67]
[1765234608253,7.48958419,133.52,133.5,0.67]
[1765234608741,27.53022836,133.55,133.5,4.75388681]
[1765234608742,26.20811571,133.55,133.5,4.75388681]
[1765234608945,26.20811571,133.55,133.51,4.75388681]
[1765234609480,26.20811571,133.55,133.52,0.67]
[1765234610555,18.72028344,133.55,133.52,4.75388681]
[1765234610960,18.72028344,133.55,133.53,0.67]
[1765234611155,7.48727163,133.56,133.53,0.67]
[1765234612692,26.2038986,133.57,133.53,0.67]
[1765234613563,26.2038986,133.57,133.53,4.75388681]
[1765234613973,26.2038986,133.57,133.54,0.68]
[1765234614487,7.48671108,133.57,133.54,4.76388681]
[1765234614672,27.5245924,133.59,133.55,8.2]
[1765234614673,7.48615062,133.58,133.55,8.2]
[1765234614866,7.48615062,133.58,133.55,8.88]
[1765234615065,7.48615062,133.58,133.56,0.68]
[1765234615482,21.76383173,133.57,133.42,0.99999999]
[1765234615685,4.08388681,133.53,133.49,0.68]
[1765234616191,4.75388681,133.53,133.49,0.68]
[1765234616367,0.67,133.53,133.49,0.68]
[1765234616676,7.48951467,133.52,133.49,0.68]
[1765234617670,26.21330136,133.52,133.49,0.68]
[1765234618280,7.48951467,133.52,133.49,0.68]
[1765234618993,7.48895379,133.53,133.49,0.68]
[1765234619381,26.21133827,133.53,133.49,0.68]
[1765234620473,26.88133827,133.53,133.49,0.68]
[1765234623493,26.21133827,133.53,133.49,0.68]
[1765234626494,7.48895379,133.53,133.5,8.2]
[1765234626699,7.48895379,133.53,133.51,0.69]
[1765234627701,7.48839299,133.54,133.51,0.69]
[1765234627907,8.18839299,133.54,133.51,0.69]
[1765234630505,9.19999999,133.66,133.53,16.308864]
[1765234630680,172.39675291,133.68,133.54,16.308864]
[1765234630681,4.78388681,133.59,133.54,16.308864]
[1765234631102,13.59383173,133.58,133.55,0.69]
[1765234631381,13.59383173,133.58,133.52,16.998864]
[1765234631582,0.7,133.57,133.52,16.998864]
[1765234631798,0.7,133.57,133.53,0.69]
[1765234632198,7.48727163,133.56,133.53,0.69]
[1765234633710,26.90348879,133.57,133.53,0.69]
[1765234633921,0.7,133.56,133.53,0.69]
[1765234634408,0.7,133.56,133.53,16.998864]
[1765234634802,0.7,133.56,133.53,16.308864]
[1765234635918,7.48783227,133.55,133.53,16.308864]
[1765234637221,8.18783227,133.55,133.53,16.308864]
[1765234638208,0.7,133.55,133.53,16.998864]
[1765234638722,0.7,133.55,133.53,16.308864]
[1765234639905,8.18827663,133.55,133.53,16.308864]
[1765234641124,8.18727163,133.56,133.53,16.998864]
[1765234644834,8.1582129,133.55,133.53,16.998864]
[1765234645167,7.4882129,133.55,133.53,16.998864]
[1765234645343,7.4882129,133.55,133.54,0.67]
[1765234645529,7.48748155,133.56,133.54,0.67]
[1765234645708,7.4869441,133.57,133.54,4.75388681]
[1765234646239,7.4869441,133.57,133.55,0.67]
[1765234647110,7.48615062,133.58,133.55,0.67]
[1765234648023,7.48615062,133.58,133.55,3.28308744]
[1765234648337,7.48568231,133.59,133.56,10.81308744]
[1765234648527,7.48568231,133.59,133.56,11.48308744]
[1765234648730,7.48568231,133.59,133.57,0.67]
[1765234648942,0.67,133.66,133.59,16.308864]
[1765234649114,3.28308744,133.65,133.6,8.2]
[1765234649437,7.48278958,133.64,133.6,8.2]
[1765234649637,8.15278958,133.64,133.6,8.87]
[1765234649945,0.67,133.63,133.6,8.87]
[1765234650441,8.15338781,133.63,133.6,8.87]
[1765234651640,0.67,133.62,133.6,8.2]
[1765234651841,0.67,133.62,133.59,16.308864]
[1765234653609,8.15397625,133.62,133.59,16.308864]
[1765234654041,8.15397625,133.62,133.59,16.978864]
[1765234654934,7.48334954,133.63,133.59,16.308864]
[1765234655136,0.67,133.62,133.59,16.308864]
[1765234656344,8.1539364,133.62,133.59,16.978864]
[1765234663151,8.1539364,133.62,133.59,18.92195144]
[1765234663447,8.1539364,133.62,133.59,19.59195144]
[1765234666337,7.4839364,133.62,133.6,3.28308744]
[1765234666538,7.4839364,133.62,133.6,11.48308744]
[1765234666756,7.4839364,133.62,133.6,8.87]
[1765234669740,7.4839364,133.62,133.6,8.2]
[1765234669952,0.67,133.61,133.6,8.2]
[1765234671348,8.15446972,133.61,133.6,8.2]
[1765234671559,8.15446972,133.61,133.58,11.48308744]
[1765234671866,8.15446972,133.61,133.58,11.50308744]
[1765234672165,8.15446972,133.61,133.59,0.69]
[1765234672568,8.15446972,133.61,133.58,10.81308744]
[1765234672745,8.15446972,133.61,133.58,11.50308744]
[1765234675064,8.15446972,133.61,133.58,3.30308744]
[1765234675269,8.15446972,133.61,133.58,11.50308744]
[1765234675444,8.15446972,133.61,133.58,18.9892052]
[1765234676546,8.15446972,133.61,133.58,18.2992052]
[1765234676860,8.15446972,133.61,133.59,0.69]
[1765234677862,0.67,133.61,133.59,0.69]
[1765234678169,8.15451089,133.61,133.59,0.69]
[1765234681855,8.15451089,133.61,133.58,11.50308744]
[1765234690684,8.2,133.66,133.58,8.89]
[1765234690685,0.7,133.6,133.58,8.89]
[1765234690989,0.7,133.6,133.58,8.2]
[1765234691767,8.1851848,133.6,133.58,8.2]
[1765234692776,8.1851848,133.6,133.58,8.89]
[1765234692979,7.48446972,133.61,133.58,8.2]
[1765234693283,0.7,133.59,133.57,18.92195144]
[1765234693474,7.48446972,133.61,133.57,27.81195144]
[1765234693677,0.7,133.6,133.57,27.81195144]
[1765234694181,8.18508284,133.6,133.57,27.81195144]
[1765234694584,8.18508284,133.6,133.57,25.198864]
[1765234694880,8.18508284,133.6,133.57,27.81195144]
[1765234695082,8.18508284,133.6,133.57,19.61195144]
[1765234695275,8.18508284,133.6,133.57,27.81195144]
[1765234695777,0.7,133.59,133.57,19.61195144]
[1765234696077,0.7,133.59,133.57,27.81195144]
[1765234696469,0.7,133.6,133.57,27.81195144]
[1765234697082,0.7,133.6,133.57,25.198864]
[1765234698481,8.18554327,133.6,133.57,25.198864]
[1765234699077,0.7,133.59,133.57,25.198864]
[1765234699276,7.48554327,133.6,133.57,25.198864]
[1765234699480,8.18554327,133.6,133.57,25.198864]
[1765234700088,26.19564403,133.61,133.57,25.198864]
[1765234700272,0.7,133.6,133.57,25.198864]
[1765234702989,7.48559023,133.59,133.57,25.198864]
[1765234703786,0.71,133.59,133.57,27.81195144]
[1765234704393,8.19511131,133.6,133.57,27.81195144]
[1765234704693,8.19417238,133.62,133.59,2.61308744]
[1765234704868,8.19417238,133.62,133.59,10.81308744]
[1765234705063,8.19417238,133.62,133.6,0.7]
[1765234705378,8.19417238,133.62,133.59,8.9]
[1765234705572,8.19417238,133.62,133.59,11.51308744]
[1765234706795,8.19417238,133.62,133.59,12.97980359]
[1765234708900,8.19417238,133.62,133.59,8.9]
[1765234709106,8.19417238,133.62,133.59,12.97980359]
[1765234711905,8.19417238,133.62,133.6,0.7]
[1765234712086,26.1917234,133.63,133.59,30.68285682]
[1765234712287,0.71,133.61,133.59,30.68285682]
[1765234712494,0.71,133.61,133.59,31.38285682]
[1765234712675,0.71,133.62,133.59,35.46266041]
[1765234713706,7.48446972,133.61,133.59,35.46266041]
[1765234714009,8.19446972,133.61,133.59,35.46266041]
[1765234716488,26.1917234,133.63,133.59,35.46266041]
[1765234716692,0.71,133.61,133.59,35.46266041]
[1765234717711,7.48502994,133.6,133.59,35.46266041]
[1765234718508,7.48502994,133.6,133.59,31.38285682]
[1765234719609,7.48446972,133.61,133.59,31.38285682]
[1765234719985,8.19446972,133.61,133.59,31.38285682]
[1765234721708,8.80994492,133.63,133.59,31.38285682]
[1765234722097,8.80994492,133.63,133.59,8.9]
[1765234722299,8.80994492,133.63,133.6,8.80994492]
[1765234722916,27.51831878,133.63,133.6,8.80994492]
[1765234723818,35.00166832,133.63,133.6,8.80994492]
[1765234724816,35.71166832,133.63,133.6,8.80994492]
[1765234731517,35.00166832,133.63,133.6,9.51994492]
[1765234732224,26.1917234,133.63,133.6,8.80994492]
[1765234732398,26.1917234,133.63,133.61,0.71]
[1765234732800,26.1917234,133.63,133.6,4.07980359]
[1765234733000,26.1917234,133.63,133.6,4.78980359]
[1765234733217,26.1917234,133.63,133.61,22.48117201]
[1765234733824,26.1917234,133.63,133.6,4.78980359]
[1765234734125,26.1917234,133.63,133.6,27.2709756]
[1765234734512,26.1917234,133.63,133.6,4.78980359]
[1765234734699,26.1917234,133.63,133.61,22.48117201]
[1765234738731,18.70837386,133.63,133.61,23.19117201]
[1765234738920,16.988864,133.68,133.62,12.98980359]
[1765234739122,8.80994492,133.67,133.63,4.07980359]
[1765234739337,26.18426187,133.67,133.64,0.71]
[1765234739815,26.86426187,133.67,133.64,0.71]
[1765234740007,26.86426187,133.67,133.64,23.18443532]
[1765234740202,26.18426187,133.67,133.64,23.18443532]
[1765234741414,26.18426187,133.67,133.64,22.47443532]
[1765234741616,26.18426187,133.67,133.65,0.71]
[1765234742910,26.18426187,133.67,133.65,23.18443532]
[1765234747330,26.18426187,133.67,133.65,31.38443532]
[1765234748847,7.48111019,133.67,133.66,0.71]
[1765234749218,8.19111019,133.67,133.65,31.38275178]
[1765234749533,8.19111019,133.67,133.63,20.38866759]
[1765234749534,26.18388568,133.67,133.64,0.71]
[1765234749716,0.71,133.66,133.63,51.06478671]
[1765234749916,26.18388568,133.67,133.64,0.71]
[1765234750137,26.89388568,133.67,133.64,0.71]
[1765234751045,7.4822297,133.65,133.64,0.71]
[1765234752645,7.4816699,133.66,133.64,0.71]
[1765234752850,8.1916699,133.66,133.64,0.71]
[1765234754123,7.4816699,133.66,133.64,0.71]
[1765234757648,7.4813297,133.67,133.64,0.71]
[1765234757851,7.4813297,133.67,133.64,19.41277549]
[1765234758036,7.4813297,133.67,133.65,0.71]
[1765234759249,7.4807659,133.68,133.65,0.71]
[1765234759422,8.1907659,133.68,133.65,23.18106849]
[1765234759825,8.1907659,133.68,133.66,0.71]
[1765234760447,8.1907659,133.68,133.65,30.67106849]
[1765234760648,7.4807659,133.68,133.65,31.38106849]
[1765234760831,0.71,133.67,133.65,31.38106849]
[1765234761031,7.4807659,133.68,133.65,31.38106849]
[1765234761351,0.71,133.67,133.65,31.38106849]
[1765234761532,8.1607659,133.68,133.65,31.38106849]
[1765234762449,8.1607659,133.68,133.65,30.67106849]
[1765234762627,26.18059725,133.69,133.66,0.71]
[1765234762827,26.86059725,133.69,133.66,0.71]
[1765234767253,8.16060112,133.68,133.66,0.71]
[1765234767657,7.48060112,133.68,133.66,0.71]
[1765234778440,7.48007998,133.69,133.66,0.71]
[1765234778641,8.16007998,133.69,133.66,0.71]
[1765234780961,8.16007998,133.69,133.66,8.19160353]
[1765234781138,2.80866203,133.7,133.66,8.19160353]
[1765234781139,7.67962627,133.7,133.66,8.19160353]
[1765234781343,7.67962627,133.7,133.67,8.91]
[1765234781753,7.67962627,133.7,133.68,0.71]
[1765234782277,8.35962627,133.7,133.68,0.71]
[1765234784149,0.2,133.7,133.68,0.71]
[1765234784350,0.2,133.7,133.69,8.2]
[1765234784556,0.2,133.7,133.69,33.27131786]
[1765234784773,0.2,133.7,133.69,33.98131786]
[1765234786276,0.2,133.7,133.69,41.46130888]
[1765234788172,0.2,133.7,133.69,31.37265583]
[1765234788682,0.2,133.7,133.69,33.98131786]
[1765234788969,0.2,133.7,133.69,23.17265583]
[1765234789171,0.2,133.7,133.67,10.79955473]
[1765234789373,7.67958695,133.7,133.68,25.218864]
[1765234789675,7.67958695,133.7,133.68,45.81171729]
[1765234789876,8.35958695,133.7,133.68,46.52171729]
[1765234790058,0.68,133.69,133.68,45.81171729]
[1765234790257,0.68,133.69,133.68,29.50285329]
[1765234790468,3.28866203,133.69,133.66,24.508864]
[1765234790670,10.76916836,133.69,133.66,23.98845095]
[1765234790848,0.68,133.68,133.66,32.18845095]
[1765234791050,0.68,133.68,133.66,24.508864]
[1765234791257,0.68,133.68,133.66,8.2]
[1765234791662,3.28866203,133.68,133.66,8.2]
[1765234792361,10.76972966,133.68,133.66,8.2]
[1765234794582,8.16106763,133.68,133.66,8.2]
[1765234794781,7.48106763,133.68,133.66,8.88]
[1765234794979,8.19106763,133.68,133.66,8.88]
[1765234795684,8.19106763,133.68,133.66,8.2]
[1765234796169,8.19106763,133.68,133.65,19.57976478]
[1765234796370,8.19106763,133.68,133.65,8.88]
[1765234798382,8.19106763,133.68,133.65,27.77976478]
[1765234800385,3.31866203,133.67,133.64,16.308864]
[1765234800561,29.50110608,133.68,133.65,0.68]
[1765234800763,26.89244405,133.68,133.65,0.68]
[1765234801287,0.71,133.67,133.64,24.508864]
[1765234801595,0.71,133.67,133.64,27.79752603]
[1765234801896,7.48106763,133.68,133.65,3.28866203]
[1765234802072,7.48106763,133.68,133.66,2.60866203]
[1765234802274,7.48106763,133.68,133.66,3.28866203]
[1765234802680,0.71,133.68,133.66,3.28866203]
[1765234803080,0.71,133.68,133.66,11.48866203]
[1765234803491,0.2,133.7,133.67,19.59752603]
[1765234803691,0.2,133.7,133.69,2.60866203]
[1765234804077,0.2,133.7,133.69,3.28866203]
[1765234805191,0.2,133.7,133.69,10.76865305]
[1765234807595,0.2,133.7,133.69,0.68]
[1765234807802,0.2,133.7,133.69,3.28866203]
[1765234811189,0.2,133.7,133.69,10.76766069]
[1765234814495,0.2,133.7,133.69,8.15899866]
[1765234814802,0.2,133.7,133.69,10.76766069]
[1765234815310,0.2,133.7,133.69,3.28866203]
[1765234816299,0.2,133.7,133.69,2.60866203]
[1765234817412,7.67943156,133.7,133.68,27.78752603]
[1765234819383,7.67943156,133.7,133.69,2.60866203]
[1765234822893,7.67943156,133.7,133.69,3.28866203]
[1765234824321,7.67943156,133.7,133.69,2.60866203]
[1765234825521,7.67943156,133.7,133.69,3.28866203]
[1765234826420,0.2,133.7,133.69,3.28866203]
[1765234826592,0.2,133.7,133.69,19.37535104]
[1765234826793,0.2,133.7,133.69,23.44842215]
[1765234832124,0.2,133.7,133.69,30.92841317]
[1765234832703,0.2,133.7,133.69,12.23306213]
[1765234833617,0.2,133.7,133.69,4.75307111]
[1765234836123,0.2,133.7,133.69,12.23306213]
[1765234837205,0.2,133.7,133.69,8.15999102]
[1765234837533,0.2,133.7,133.69,74.33306213]
[1765234841904,0.2,133.7,133.69,62.78]
[1765234842202,0.2,133.7,133.69,66.85307111]
[1765234842528,0.87,133.7,133.69,66.17307111]
[1765234842733,8.34943156,133.7,133.69,62.1]
[1765234843411,8.34943156,133.7,133.68,8.2]
[1765234843412,8.34943156,133.7,133.68,70.3]
[1765234843641,0.67,133.69,133.68,70.3]
[1765234844006,0.67,133.69,133.68,74.37307111]
[1765234844908,0.2,133.7,133.68,74.37307111]
[1765234845112,0.2,133.7,133.69,4.07307111]
[1765234845515,0.2,133.7,133.69,4.75307111]
[1765234847530,0.2,133.7,133.69,12.23306213]
[1765234849344,0.2,133.7,133.69,74.33306213]
[1765234850741,0.2,133.7,133.69,81.81090337]
[1765234852237,0.2,133.7,133.69,74.33306213]
[1765234852418,0.2,133.7,133.69,81.81090337]
[1765234853240,0.2,133.7,133.69,77.73783226]
[1765234853443,0.2,133.7,133.69,74.33306213]
[1765234856154,0.86,133.7,133.68,8.2]
[1765234856528,0.66,133.69,133.68,8.2]
[1765234856723,8.13999102,133.69,133.67,16.308864]
[1765234856954,8.13999102,133.69,133.66,24.508864]
[1765234857116,0.66,133.68,133.66,24.508864]
[1765234857321,0.66,133.68,133.66,8.2]
[1765234857614,0.66,133.68,133.67,16.308864]
[1765234858056,0.66,133.68,133.66,8.2]
[1765234858739,8.14076549,133.68,133.66,8.2]
[1765234859115,0.66,133.67,133.66,8.2]
[1765234859321,0.66,133.67,133.66,24.508864]
[1765234861357,7.48076549,133.68,133.66,24.508864]
[1765234861664,0.72,133.67,133.66,24.508864]
[1765234862439,0.72,133.67,133.66,28.58193511]
[1765234866036,7.47999102,133.69,133.66,28.58193511]
[1765234866348,8.19999102,133.69,133.66,25.178864]
[1765234866551,8.19999102,133.69,133.67,4.07307111]
[1765234866740,0.72,133.68,133.67,4.07307111]
[1765234867258,7.47999102,133.69,133.67,4.07307111]
[1765234867458,8.19999102,133.69,133.67,4.07307111]
[1765234867759,8.19999102,133.69,133.68,4.07307111]
[1765234868457,8.39952456,133.7,133.67,0.67]
[1765234868629,8.39952456,133.7,133.69,4.07307111]
[1765234870642,0.2,133.7,133.68,12.27307111]
[1765234870833,0.2,133.7,133.69,4.07307111]
[1765234871042,0.2,133.7,133.69,4.74307111]
[1765234871372,0.92,133.7,133.68,8.2]
[1765234871662,0.2,133.7,133.69,4.07307111]
[1765234877662,8.39958608,133.7,133.68,74.37307111]
[1765234878067,0.72,133.69,133.68,8.2]
[1765234878751,0.72,133.69,133.66,28.58193511]
[1765234878953,0.72,133.69,133.66,29.25193511]
[1765234879269,8.20005597,133.69,133.66,29.25193511]
[1765234879563,8.20005597,133.69,133.67,4.07307111]
[1765234880046,0.72,133.68,133.66,24.508864]
[1765234880369,0.72,133.68,133.66,28.58193511]
[1765234882442,0.72,133.68,133.67,4.07307111]
[1765234883940,8.20093019,133.68,133.64,18.69796521]
[1765234884140,8.80994492,133.67,133.63,4.07307111]
[1765234884372,7.4816699,133.66,133.63,4.07307111]
[1765234884677,26.86584467,133.66,133.63,4.07307111]
[1765234884854,0.68,133.65,133.63,4.07307111]
[1765234885247,0.68,133.65,133.62,8.2]
[1765234885580,0.68,133.65,133.63,4.07307111]
[1765234886079,7.48278958,133.64,133.63,4.07307111]
[1765234886571,8.16278958,133.64,133.63,4.07307111]
[1765234888646,8.16278958,133.64,133.63,2.60984977]
[1765234890389,8.16278958,133.64,133.62,10.80984977]
[1765234891775,8.16278958,133.64,133.59,7.48538433]
[1765234891776,0.68,133.63,133.58,8.18602987]
[1765234891946,0.68,133.63,133.6,2.60984977]
[1765234893170,7.48390959,133.62,133.6,2.60984977]
[1765234893380,7.48390959,133.62,133.61,3.30984977]
[1765234893548,8.16355735,133.63,133.61,2.60984977]
[1765234893878,8.1622297,133.65,133.62,3.30984977]
[1765234894446,0.68,133.64,133.62,3.30984977]
[1765234894756,0.68,133.64,133.62,2.60984977]
[1765234895673,8.16289658,133.64,133.62,2.60984977]
[1765234896677,26.18637252,133.66,133.62,2.60984977]
[1765234896877,0.68,133.65,133.62,3.30984977]
[1765234898196,8.16241022,133.65,133.62,3.30984977]
[1765234898360,0.68,133.64,133.62,3.30984977]
[1765234899786,0.68,133.64,133.62,65.40984977]
[1765234900285,0.68,133.64,133.62,64.70984977]
[1765234901986,0.68,133.64,133.62,62.8]
[1765234902166,0.68,133.64,133.62,65.40984977]
[1765234902788,0.68,133.64,133.62,64.70984977]
[1765234902961,8.16241022,133.65,133.62,65.40984977]
[1765234904287,8.16241022,133.65,133.62,62.8]
[1765234904470,8.16241022,133.65,133.62,65.40984977]
[1765234904671,26.18637252,133.66,133.62,65.40984977]
[1765234904881,0.68,133.65,133.62,65.40984977]
[1765234905583,0.68,133.65,133.62,62.1]
[1765234905900,0.68,133.65,133.62,64.70984977]
[1765234906056,0.68,133.65,133.62,62.1]
[1765234906261,8.80994492,133.64,133.62,62.1]
[1765234906808,8.16334954,133.63,133.62,62.1]
[1765234907086,16.97329446,133.63,133.62,62.1]
[1765234907283,16.97329446,133.63,133.59,24.508864]
[1765234907284,35.68166832,133.63,133.59,24.508864]
[1765234907471,0.68,133.62,133.59,27.81871377]
[1765234908884,7.48446972,133.61,133.59,27.81871377]
[1765234912294,8.14390959,133.62,133.59,25.208864]
[1765234913488,8.14390959,133.62,133.59,24.508864]
[1765234913785,8.80994492,133.67,133.61,2.60984977]
[1765234914090,9.46994492,133.67,133.64,2.60984977]
[1765234914390,9.46994492,133.67,133.64,10.80984977]
[1765234914588,7.4822297,133.65,133.64,11.47984977]
[1765234914767,7.4822297,133.65,133.64,10.80984977]
[1765234914967,7.4822297,133.65,133.64,11.47984977]
[1765234916486,7.4822297,133.65,133.64,10.80984977]
[1765234917384,7.4822297,133.65,133.64,8.2]
[1765234918266,7.4822297,133.65,133.64,11.47984977]
[1765234919299,7.4816699,133.66,133.64,11.47984977]
[1765234919697,7.4816699,133.66,133.65,0.67]
[1765234920481,7.4816699,133.66,133.64,10.80984977]
[1765234920780,7.4816699,133.66,133.64,11.48984977]
[1765234927106,0.71,133.66,133.64,11.48984977]
[1765234928404,7.4822297,133.65,133.64,11.48984977]
[1765234929591,7.4816699,133.66,133.64,11.48984977]
[1765234931312,18.70350397,133.67,133.64,11.48984977]
[1765234931516,0.71,133.66,133.64,11.48984977]
[1765234931814,19.41350397,133.67,133.64,11.48984977]
[1765234933098,26.89461416,133.67,133.64,11.48984977]
[1765234939023,26.89461416,133.67,133.65,0.68]
[1765234939430,7.48111019,133.67,133.66,2.60984977]
[1765234939604,18.70030727,133.69,133.66,2.60984977]
[1765234939605,7.48076043,133.68,133.66,2.60984977]
[1765234939797,7.48076043,133.68,133.67,3.28984977]
[1765234940124,0.2,133.7,133.67,11.48984977]
[1765234940323,0.2,133.7,133.68,3.28984977]
[1765234940324,7.679546,133.7,133.68,3.28984977]
[1765234940920,7.679546,133.7,133.69,0.68]
[1765234941821,7.679546,133.7,133.69,3.28984977]
[1765234942706,7.679546,133.7,133.69,0.68]
[1765234943023,7.679546,133.7,133.69,3.28984977]
[1765234946625,0.2,133.7,133.69,3.28984977]
[1765234946833,0.2,133.7,133.69,65.38984977]
[1765234947016,0.2,133.75,133.72,2.60984977]
[1765234947203,0.2,133.75,133.74,2.60984977]
[1765234947404,0.2,133.75,133.74,3.30984977]
[1765234947611,0.2,133.76,133.74,19.61871377]
[1765234947830,0.2,133.76,133.75,3.30984977]
[1765234948603,0.2,133.76,133.75,10.78648528]
[1765234950307,0.2,133.76,133.75,19.61871377]
[1765234950701,0.2,133.76,133.75,21.07826425]
[1765234951206,0.2,133.76,133.75,29.27826425]
[1765234953237,0.2,133.76,133.75,91.37826425]
[1765234954133,0.2,133.76,133.75,98.85489976]
[1765234954440,0.2,133.8,133.75,102.22430001]
[1765234954614,0.2,133.8,133.79,4.06940025]
[1765234954820,0.2,133.8,133.79,74.36940025]
[1765234955147,0.2,133.8,133.79,75.06940025]
[1765234955815,0.2,133.8,133.79,82.54380042]
[1765234956136,0.2,133.81,133.79,82.54380042]
[1765234956338,0.2,133.81,133.8,4.76940025]
[1765234956641,0.2,133.82,133.8,4.76940025]
[1765234956642,0.2,133.82,133.81,16.308864]
[1765234956814,0.2,133.82,133.81,21.07826425]
[1765234957340,0.2,133.82,133.79,77.77440017]
[1765234957341,8.34272455,133.82,133.8,4.06940025]
[1765234957541,8.34272455,133.82,133.79,16.308864]
[1765234957542,8.34272455,133.82,133.79,24.508864]
[1765234957728,8.1433291,133.81,133.79,24.508864]
[1765234958109,0.67,133.8,133.79,24.508864]
[1765234958419,0.67,133.8,133.77,4.06940025]
[1765234958736,0.67,133.8,133.77,12.26940025]
[1765234959117,8.80994492,133.79,133.75,4.06940025]
[1765234959314,8.80994492,133.79,133.74,4.06940025]
[1765234959640,0.67,133.78,133.74,4.06940025]
[1765234960247,7.47551767,133.77,133.74,4.06940025]
[1765234960539,7.47551767,133.77,133.73,24.508864]
[1765234960708,0.67,133.76,133.74,4.06940025]
[1765234962338,8.14620994,133.76,133.74,4.06940025]
[1765234962816,7.47620994,133.76,133.75,4.06940025]
[1765234963017,0.67,133.77,133.75,4.06940025]
[1765234963221,0.67,133.77,133.76,4.06940025]
[1765234963542,8.1457437,133.77,133.75,4.06940025]
[1765234965467,7.4757437,133.77,133.75,4.06940025]
[1765234965660,0.67,133.76,133.74,4.06940025]
[1765234965824,0.67,133.76,133.73,62.1]
[1765234967250,7.47663551,133.75,133.73,62.1]
[1765234967749,0.67,133.74,133.73,62.1]
[1765234968156,8.14663551,133.75,133.73,62.1]
[1765234968359,8.14663551,133.75,133.73,66.16940025]
[1765234968647,7.47620679,133.76,133.74,4.06940025]
[1765234968851,8.14567018,133.77,133.75,4.06940025]
[1765234970631,7.47567018,133.77,133.75,4.76940025]
[1765234970838,7.47384155,133.8,133.76,12.96940025]
[1765234971149,30.89784568,133.8,133.76,8.2]
[1765234971328,0.72,133.79,133.76,8.2]
[1765234971744,4.78940025,133.79,133.76,8.2]
[1765234971951,7.47495888,133.78,133.76,8.2]
[1765234972170,8.19495888,133.78,133.76,8.2]
[1765234972385,7.47495888,133.78,133.77,4.06940025]
[1765234973482,0.72,133.8,133.77,4.06940025]
[1765234973483,7.47440017,133.79,133.77,4.06940025]
[1765234973979,8.19440017,133.79,133.77,4.06940025]
[1765234975354,7.47384155,133.8,133.77,4.06940025]